[Event "Titled Tuesday Blitz October 5 2021"]
[White "Svane, Rasmus"]
[Black "Wagner, Dennis"]
[WhiteFideId "4657101"]
[BlackFideId "24650684"]
[WhiteElo "2643"]
[BlackElo "2355"]
[Result "1/2-1/2"]
[Round "07"]
[TimeControl "180+1"]
[Date "2021.10.05"]
[WhiteClock "0:00:12"]
[BlackClock "0:00:18"]

1. d4 {[%clk 0:03:00]}  Nf6 {[%clk 0:02:58]} 2. Nf3 {[%clk 0:03:01]}  g6 {[%clk 0:02:52]} 3. Nbd2 {[%clk 0:03:01]}  Bg7 {[%clk 0:02:48]} 4. e4 {[%clk 0:03:00]}  O-O {[%clk 0:02:48]} 5. Bd3 {[%clk 0:02:58]}  d6 {[%clk 0:02:49]} 6. O-O {[%clk 0:02:57]}  c5 {[%clk 0:02:50]} 7. c3 {[%clk 0:02:56]}  cxd4 {[%clk 0:02:50]} 8. cxd4 {[%clk 0:02:57]}  e5 {[%clk 0:02:50]} 9. d5 {[%clk 0:02:43]}  Nbd7 {[%clk 0:02:49]} 10. Bc2 {[%clk 0:02:40]}  a5 {[%clk 0:02:43]} 11. Re1 {[%clk 0:02:38]}  Nc5 {[%clk 0:02:27]} 12. Nb3 {[%clk 0:02:38]}  b6 {[%clk 0:02:27]} 13. Nxc5 {[%clk 0:02:37]}  bxc5 {[%clk 0:02:27]} 14. Bd3 {[%clk 0:02:19]}  a4 {[%clk 0:02:21]} 15. Nd2 {[%clk 0:02:18]}  Nd7 {[%clk 0:02:20]} 16. Qc2 {[%clk 0:02:15]}  Nb6 {[%clk 0:02:19]} 17. Nc4 {[%clk 0:02:06]}  Nxc4 {[%clk 0:02:18]} 18. Bxc4 {[%clk 0:02:07]}  Qb6 {[%clk 0:02:17]} 19. Bd2 {[%clk 0:01:58]}  Bd7 {[%clk 0:01:52]} 20. Rab1 {[%clk 0:01:53]}  f5 {[%clk 0:01:41]} 21. f3 {[%clk 0:01:52]}  f4 {[%clk 0:01:39]} 22. Rec1 {[%clk 0:01:42]}  g5 {[%clk 0:01:39]} 23. Qd1 {[%clk 0:01:32]}  h5 {[%clk 0:01:38]} 24. Be2 {[%clk 0:01:26]}  Bf6 {[%clk 0:01:30]} 25. Kh1 {[%clk 0:01:04]}  Kh8 {[%clk 0:01:30]} 26. b3 {[%clk 0:01:01]}  axb3 {[%clk 0:01:23]} 27. axb3 {[%clk 0:01:02]}  Qd8 {[%clk 0:00:32]} 28. b4 {[%clk 0:01:01]}  cxb4 {[%clk 0:00:33]} 29. Bxb4 {[%clk 0:01:02]}  Qe7 {[%clk 0:00:32]} 30. Rc7 {[%clk 0:00:59]}  Rfc8 {[%clk 0:00:30]} 31. Rb7 {[%clk 0:00:51]}  Qd8 {[%clk 0:00:24]} 32. Qg1 {[%clk 0:00:43]}  Be7 {[%clk 0:00:17]} 33. Bd3 {[%clk 0:00:32]}  Rab8 {[%clk 0:00:16]} 34. Ba5 {[%clk 0:00:30]}  Qe8 {[%clk 0:00:11]} 35. Bc7 {[%clk 0:00:21]}  Rxb7 {[%clk 0:00:10]} 36. Rxb7 {[%clk 0:00:22]}  g4 {[%clk 0:00:10]} 37. Be2 {[%clk 0:00:20]}  Ra8 {[%clk 0:00:03]} 38. Ra7 {[%clk 0:00:19]}  Rxa7 {[%clk 0:00:03]} 39. Qxa7 {[%clk 0:00:20]}  gxf3 {[%clk 0:00:02]} 40. Bxf3 {[%clk 0:00:20]}  Bg4 {[%clk 0:00:02]} 41. h3 {[%clk 0:00:12]}  Bxf3 {[%clk 0:00:02]} 42. gxf3 {[%clk 0:00:13]}  Qd7 {[%clk 0:00:02]} 43. Kg2 {[%clk 0:00:12]}  Bd8 {[%clk 0:00:03]} 44. Bb6 {[%clk 0:00:11]}  Qxa7 {[%clk 0:00:04]} 45. Bxa7 {[%clk 0:00:12]}  Bc7 {[%clk 0:00:03]} 46. Kf1 {[%clk 0:00:13]}  Kg7 {[%clk 0:00:04]} 47. Ke2 {[%clk 0:00:13]}  Kf6 {[%clk 0:00:04]} 48. Kd3 {[%clk 0:00:14]}  Kg5 {[%clk 0:00:05]} 49. Bf2 {[%clk 0:00:14]}  Kf6 {[%clk 0:00:05]} 50. Kc4 {[%clk 0:00:14]}  Ke7 {[%clk 0:00:06]} 51. Kb5 {[%clk 0:00:15]}  Kd7 {[%clk 0:00:07]} 52. Ka6 {[%clk 0:00:14]}  Bd8 {[%clk 0:00:07]} 53. Kb7 {[%clk 0:00:14]}  Bf6 {[%clk 0:00:08]} 54. Be1 {[%clk 0:00:14]}  Be7 {[%clk 0:00:08]} 55. Kb6 {[%clk 0:00:11]}  Bf6 {[%clk 0:00:09]} 56. Kb5 {[%clk 0:00:12]}  Be7 {[%clk 0:00:09]} 57. Kc4 {[%clk 0:00:12]}  Bf6 {[%clk 0:00:10]} 58. Kd3 {[%clk 0:00:13]}  Be7 {[%clk 0:00:11]} 59. Ke2 {[%clk 0:00:13]}  Bf6 {[%clk 0:00:11]} 60. Ba5 {[%clk 0:00:13]}  Be7 {[%clk 0:00:12]} 61. Kd3 {[%clk 0:00:10]}  Bf6 {[%clk 0:00:12]} 62. Kc4 {[%clk 0:00:10]}  Be7 {[%clk 0:00:13]} 63. Kb5 {[%clk 0:00:10]}  Bf6 {[%clk 0:00:14]} 64. Ka6 {[%clk 0:00:10]}  Be7 {[%clk 0:00:14]} 65. Kb7 {[%clk 0:00:11]}  Bf6 {[%clk 0:00:15]} 66. Bc7 {[%clk 0:00:11]}  Be7 {[%clk 0:00:15]} 67. Bb8 {[%clk 0:00:11]}  Bf6 {[%clk 0:00:16]} 68. Ba7 {[%clk 0:00:12]}  Be7 {[%clk 0:00:16]} 69. Bf2 {[%clk 0:00:12]}  Bf6 {[%clk 0:00:16]} 70. Kb6 {[%clk 0:00:11]}  Be7 {[%clk 0:00:17]} 71. Kb5 {[%clk 0:00:11]}  Bf6 {[%clk 0:00:17]} 72. Kb6 {[%clk 0:00:11]}  Be7 {[%clk 0:00:18]} 73. Kb5 {[%clk 0:00:11]}  Bf6 {[%clk 0:00:18]} 74. Kb6 {[%clk 0:00:12]} 1/2-1/2


[Site "https://www.chess.com"]

[Event "Titled Tuesday Blitz October 5 2021"]
[White "Sychev, Klementy"]
[Black "Sadykov, Ramil"]
[WhiteFideId "4114060"]
[BlackFideId "24113590"]
[WhiteElo "2615"]
[BlackElo "2300"]
[Result "0-1"]
[Round "07"]
[TimeControl "180+1"]
[Date "2021.10.05"]
[WhiteClock "0:00:01"]
[BlackClock "0:00:07"]

1. Nf3 {[%clk 0:03:00]}  Nf6 {[%clk 0:02:57]} 2. c4 {[%clk 0:02:59]}  e6 {[%clk 0:02:57]} 3. g3 {[%clk 0:02:59]}  d5 {[%clk 0:02:55]} 4. Bg2 {[%clk 0:03:00]}  Be7 {[%clk 0:02:53]} 5. O-O {[%clk 0:02:56]}  O-O {[%clk 0:02:53]} 6. b3 {[%clk 0:02:41]}  c5 {[%clk 0:02:52]} 7. Bb2 {[%clk 0:02:35]}  Nc6 {[%clk 0:02:51]} 8. e3 {[%clk 0:02:35]}  b6 {[%clk 0:02:48]} 9. Nc3 {[%clk 0:02:33]}  Bb7 {[%clk 0:02:47]} 10. cxd5 {[%clk 0:02:32]}  Nxd5 {[%clk 0:02:30]} 11. Nxd5 {[%clk 0:02:32]}  Qxd5 {[%clk 0:02:30]} 12. Ne5 {[%clk 0:02:30]}  Qd6 {[%clk 0:02:28]} 13. Nc4 {[%clk 0:01:39]}  Qd8 {[%clk 0:02:03]} 14. f4 {[%clk 0:01:27]}  Bf6 {[%clk 0:01:57]} 15. Bxf6 {[%clk 0:01:25]}  Qxf6 {[%clk 0:01:51]} 16. Nd6 {[%clk 0:00:58]}  Qe7 {[%clk 0:01:40]} 17. Nxb7 {[%clk 0:00:56]}  Qxb7 {[%clk 0:01:41]} 18. b4 {[%clk 0:00:56]}  cxb4 {[%clk 0:00:48]} 19. Rc1 {[%clk 0:00:54]}  Rac8 {[%clk 0:00:48]} 20. Qf3 {[%clk 0:00:52]}  Qa6 {[%clk 0:00:44]} 21. Rxc6 {[%clk 0:00:50]}  Qxa2 {[%clk 0:00:44]} 22. Rxc8 {[%clk 0:00:27]}  Rxc8 {[%clk 0:00:45]} 23. Qb7 {[%clk 0:00:27]}  Rf8 {[%clk 0:00:41]} 24. d4 {[%clk 0:00:18]}  b3 {[%clk 0:00:34]} 25. Qe4 {[%clk 0:00:15]}  b2 {[%clk 0:00:27]} 26. f5 {[%clk 0:00:14]}  Rc8 {[%clk 0:00:24]} 27. f6 {[%clk 0:00:03]}  g6 {[%clk 0:00:15]} 28. h4 {[%clk 0:00:02]}  Qa3 {[%clk 0:00:14]} 29. g4 {[%clk 0:00:02]}  Rc1 {[%clk 0:00:10]} 30. g5 {[%clk 0:00:01]}  h5 {[%clk 0:00:08]} 31. gxh6 {[%clk 0:00:01]}  Rxf1+ {[%clk 0:00:07]} 0-1


[Site "https://www.chess.com"]

[Event "Titled Tuesday Blitz October 5 2021"]
[White "Taboas Rodriguez, Daniel"]
[Black "Sokolin, Leonid"]
[WhiteFideId "2208466"]
[BlackFideId "2009161"]
[WhiteElo "2429"]
[BlackElo "2394"]
[Result "1-0"]
[Round "07"]
[TimeControl "180+1"]
[Date "2021.10.05"]
[WhiteClock "0:02:13"]
[BlackClock "0:00:11"]

1. d4 {[%clk 0:02:53]}  Nf6 {[%clk 0:02:31]} 2. Nf3 {[%clk 0:02:53]}  e6 {[%clk 0:02:30]} 3. c4 {[%clk 0:02:54]}  d5 {[%clk 0:02:30]} 4. Bg5 {[%clk 0:02:51]}  dxc4 {[%clk 0:02:28]} 5. Nc3 {[%clk 0:02:51]}  a6 {[%clk 0:02:22]} 6. a4 {[%clk 0:02:48]}  Nc6 {[%clk 0:02:04]} 7. e3 {[%clk 0:02:48]}  Na5 {[%clk 0:02:03]} 8. Ne5 {[%clk 0:02:48]}  c5 {[%clk 0:01:58]} 9. Nxc4 {[%clk 0:02:47]}  cxd4 {[%clk 0:01:55]} 10. exd4 {[%clk 0:02:47]}  Nxc4 {[%clk 0:01:41]} 11. Bxc4 {[%clk 0:02:48]}  Qa5 {[%clk 0:01:41]} 12. Bxf6 {[%clk 0:02:45]}  gxf6 {[%clk 0:01:41]} 13. O-O {[%clk 0:02:45]}  Rg8 {[%clk 0:01:22]} 14. Re1 {[%clk 0:02:43]}  Qg5 {[%clk 0:01:09]} 15. g3 {[%clk 0:02:42]}  Bd7 {[%clk 0:00:53]} 16. Ne4 {[%clk 0:02:33]}  Qg6 {[%clk 0:00:51]} 17. Qb3 {[%clk 0:02:32]}  Rc8 {[%clk 0:00:22]} 18. d5 {[%clk 0:02:29]}  e5 {[%clk 0:00:19]} 19. d6 {[%clk 0:02:25]}  f5 {[%clk 0:00:18]} 20. Ng5 {[%clk 0:02:15]}  Qxg5 {[%clk 0:00:16]} 21. Bxf7+ {[%clk 0:02:14]}  Kd8 {[%clk 0:00:16]} 22. Bxg8 {[%clk 0:02:15]}  e4 {[%clk 0:00:11]} 23. Be6 {[%clk 0:02:13]} 1-0


[Site "https://www.chess.com"]

[Event "Titled Tuesday Blitz October 5 2021"]
[White "Timofeev, Artyom"]
[Black "Visakh N R"]
[WhiteFideId "4140419"]
[BlackFideId "25012223"]
[WhiteElo "2591"]
[BlackElo "2454"]
[Result "1-0"]
[Round "07"]
[TimeControl "180+1"]
[Date "2021.10.05"]
[WhiteClock "0:00:06"]
[BlackClock "0:00:02"]

1. c4 {[%clk 0:03:00]}  Nf6 {[%clk 0:02:59]} 2. Nf3 {[%clk 0:03:00]}  e6 {[%clk 0:02:59]} 3. b3 {[%clk 0:02:59]}  d5 {[%clk 0:02:58]} 4. Bb2 {[%clk 0:03:00]}  Be7 {[%clk 0:02:58]} 5. e3 {[%clk 0:03:00]}  O-O {[%clk 0:02:59]} 6. Be2 {[%clk 0:03:00]}  c5 {[%clk 0:02:58]} 7. O-O {[%clk 0:02:59]}  Nc6 {[%clk 0:02:58]} 8. cxd5 {[%clk 0:03:00]}  Nxd5 {[%clk 0:02:58]} 9. Nc3 {[%clk 0:02:58]}  Bf6 {[%clk 0:02:58]} 10. Qc1 {[%clk 0:02:56]}  Nde7 {[%clk 0:02:46]} 11. Rd1 {[%clk 0:02:51]}  b6 {[%clk 0:02:45]} 12. a3 {[%clk 0:02:49]}  Bb7 {[%clk 0:02:43]} 13. Qc2 {[%clk 0:02:49]}  Rc8 {[%clk 0:02:42]} 14. Qd3 {[%clk 0:02:34]}  Qc7 {[%clk 0:02:24]} 15. Rac1 {[%clk 0:02:33]}  Rfd8 {[%clk 0:02:23]} 16. Qb1 {[%clk 0:02:33]}  Qb8 {[%clk 0:02:19]} 17. h3 {[%clk 0:02:33]}  h6 {[%clk 0:02:19]} 18. Ba1 {[%clk 0:02:26]}  Qa8 {[%clk 0:02:17]} 19. b4 {[%clk 0:02:25]}  cxb4 {[%clk 0:02:17]} 20. axb4 {[%clk 0:02:25]}  Ne5 {[%clk 0:02:17]} 21. Nxe5 {[%clk 0:02:23]}  Bxe5 {[%clk 0:02:18]} 22. Bf1 {[%clk 0:02:23]}  Nf5 {[%clk 0:02:00]} 23. Nb5 {[%clk 0:02:20]}  Bxa1 {[%clk 0:01:52]} 24. Qxa1 {[%clk 0:02:20]}  a5 {[%clk 0:01:50]} 25. Rxc8 {[%clk 0:02:16]}  Rxc8 {[%clk 0:01:46]} 26. bxa5 {[%clk 0:02:17]}  Qxa5 {[%clk 0:01:46]} 27. Qb2 {[%clk 0:02:13]}  Qa4 {[%clk 0:01:39]} 28. Rc1 {[%clk 0:02:10]}  Rxc1 {[%clk 0:01:36]} 29. Qxc1 {[%clk 0:02:10]}  Ba6 {[%clk 0:01:18]} 30. Qc6 {[%clk 0:01:58]}  Bxb5 {[%clk 0:01:18]} 31. Bxb5 {[%clk 0:01:58]}  Qd1+ {[%clk 0:01:18]} 32. Bf1 {[%clk 0:01:58]}  Qxd2 {[%clk 0:01:12]} 33. Qe8+ {[%clk 0:01:57]}  Kh7 {[%clk 0:01:12]} 34. Qxf7 {[%clk 0:01:57]}  Qd5 {[%clk 0:01:09]} 35. Qe8 {[%clk 0:01:53]}  Nd6 {[%clk 0:01:05]} 36. Qa4 {[%clk 0:01:52]}  Ne4 {[%clk 0:01:03]} 37. Qc2 {[%clk 0:01:50]}  Kh8 {[%clk 0:00:59]} 38. Bc4 {[%clk 0:01:50]}  Qe5 {[%clk 0:00:59]} 39. Qa2 {[%clk 0:01:30]}  Nc5 {[%clk 0:00:46]} 40. Qb1 {[%clk 0:01:24]}  Qc3 {[%clk 0:00:41]} 41. Be2 {[%clk 0:01:20]}  Qd2 {[%clk 0:00:40]} 42. Bf1 {[%clk 0:01:15]}  Qd6 {[%clk 0:00:36]} 43. h4 {[%clk 0:01:12]}  Nd7 {[%clk 0:00:31]} 44. g3 {[%clk 0:01:08]}  Nf6 {[%clk 0:00:29]} 45. Be2 {[%clk 0:01:05]}  Qd2 {[%clk 0:00:29]} 46. Kf1 {[%clk 0:01:05]}  Qd5 {[%clk 0:00:29]} 47. Kg1 {[%clk 0:01:01]}  Qd2 {[%clk 0:00:24]} 48. Bf3 {[%clk 0:01:01]}  Qd6 {[%clk 0:00:22]} 49. Kg2 {[%clk 0:01:01]}  Nd5 {[%clk 0:00:21]} 50. Qb3 {[%clk 0:01:00]}  Nf6 {[%clk 0:00:21]} 51. Qc4 {[%clk 0:00:59]}  e5 {[%clk 0:00:21]} 52. Bb7 {[%clk 0:00:50]}  g5 {[%clk 0:00:19]} 53. hxg5 {[%clk 0:00:47]}  hxg5 {[%clk 0:00:20]} 54. Qf7 {[%clk 0:00:45]}  Ng8 {[%clk 0:00:14]} 55. Be4 {[%clk 0:00:39]}  Nf6 {[%clk 0:00:13]} 56. Bf3 {[%clk 0:00:28]}  g4 {[%clk 0:00:13]} 57. Bb7 {[%clk 0:00:25]}  Ng8 {[%clk 0:00:11]} 58. Qh5+ {[%clk 0:00:24]}  Nh6 {[%clk 0:00:11]} 59. Be4 {[%clk 0:00:24]}  Kg7 {[%clk 0:00:10]} 60. Qg5+ {[%clk 0:00:24]}  Kf7 {[%clk 0:00:10]} 61. Qh5+ {[%clk 0:00:21]}  Kg7 {[%clk 0:00:07]} 62. Qh1 {[%clk 0:00:21]}  Ng8 {[%clk 0:00:05]} 63. Qh7+ {[%clk 0:00:20]}  Kf8 {[%clk 0:00:06]} 64. Qf5+ {[%clk 0:00:18]}  Nf6 {[%clk 0:00:06]} 65. Bb7 {[%clk 0:00:18]}  Ke7 {[%clk 0:00:06]} 66. Qg5 {[%clk 0:00:17]}  Qe6 {[%clk 0:00:06]} 67. Qh6 {[%clk 0:00:12]}  Kd6 {[%clk 0:00:06]} 68. Qf8+ {[%clk 0:00:11]}  Kc7 {[%clk 0:00:05]} 69. Ba8 {[%clk 0:00:09]}  Nd7 {[%clk 0:00:05]} 70. Qb4 {[%clk 0:00:09]}  Nc5 {[%clk 0:00:04]} 71. Qd2 {[%clk 0:00:08]}  Kb8 {[%clk 0:00:04]} 72. Bd5 {[%clk 0:00:07]}  Qd6 {[%clk 0:00:04]} 73. Qa2 {[%clk 0:00:08]}  Kc7 {[%clk 0:00:02]} 74. Qc4 {[%clk 0:00:08]}  Kd8 {[%clk 0:00:02]} 75. Ba8 {[%clk 0:00:07]}  Qd7 {[%clk 0:00:03]} 76. Qg8+ {[%clk 0:00:06]}  Qe8 {[%clk 0:00:03]} 77. Qxg4 {[%clk 0:00:06]}  Kc7 {[%clk 0:00:03]} 78. Bd5 {[%clk 0:00:06]}  b5 {[%clk 0:00:03]} 79. Qb4 {[%clk 0:00:05]}  Kb6 {[%clk 0:00:03]} 80. g4 {[%clk 0:00:05]}  Qd7 {[%clk 0:00:04]} 81. Bf3 {[%clk 0:00:04]}  Na6 {[%clk 0:00:04]} 82. Qe4 {[%clk 0:00:04]}  Nc5 {[%clk 0:00:05]} 83. Qxe5 {[%clk 0:00:04]}  b4 {[%clk 0:00:05]} 84. Qd4 {[%clk 0:00:04]}  Qxd4 {[%clk 0:00:05]} 85. exd4 {[%clk 0:00:04]}  Ne6 {[%clk 0:00:05]} 86. Be4 {[%clk 0:00:02]}  Nxd4 {[%clk 0:00:03]} 87. f4 {[%clk 0:00:02]}  Kc7 {[%clk 0:00:03]} 88. Kg3 {[%clk 0:00:02]}  b3 {[%clk 0:00:04]} 89. g5 {[%clk 0:00:03]}  Ne2+ {[%clk 0:00:04]} 90. Kg4 {[%clk 0:00:03]}  Nc3 {[%clk 0:00:04]} 91. Bd3 {[%clk 0:00:03]}  Kd6 {[%clk 0:00:04]} 92. f5 {[%clk 0:00:03]}  Ke7 {[%clk 0:00:05]} 93. f6+ {[%clk 0:00:04]}  Kf7 {[%clk 0:00:05]} 94. Bc4+ {[%clk 0:00:04]}  Kg6 {[%clk 0:00:04]} 95. Bxb3 {[%clk 0:00:04]}  Nb5 {[%clk 0:00:02]} 96. Bc2+ {[%clk 0:00:05]}  Kf7 {[%clk 0:00:03]} 97. Bd3 {[%clk 0:00:05]}  Nd4 {[%clk 0:00:03]} 98. Kh5 {[%clk 0:00:05]}  Ke6 {[%clk 0:00:03]} 99. Bc4+ {[%clk 0:00:05]}  Kd7 {[%clk 0:00:02]} 100. Kh6 {[%clk 0:00:05]}  Nf5+ {[%clk 0:00:02]} 101. Kh7 {[%clk 0:00:06]} 1-0


[Site "https://www.chess.com"]

[Event "Titled Tuesday Blitz October 5 2021"]
[White "Vokhidov, Shamsiddin"]
[Black "Madaminov, Mukhiddin"]
[WhiteFideId "14204223"]
[BlackFideId "14210703"]
[WhiteElo "2616"]
[BlackElo "1855"]
[Result "1-0"]
[Round "07"]
[TimeControl "180+1"]
[Date "2021.10.05"]
[WhiteClock "0:00:34"]
[BlackClock "0:00:01"]

1. e4 {[%clk 0:03:00]}  e5 {[%clk 0:03:00]} 2. Nf3 {[%clk 0:03:01]}  Nc6 {[%clk 0:03:01]} 3. Bb5 {[%clk 0:03:01]}  a6 {[%clk 0:03:00]} 4. Ba4 {[%clk 0:03:01]}  Nf6 {[%clk 0:03:00]} 5. O-O {[%clk 0:03:01]}  Nxe4 {[%clk 0:02:59]} 6. d4 {[%clk 0:03:00]}  b5 {[%clk 0:03:00]} 7. Bb3 {[%clk 0:03:00]}  d5 {[%clk 0:03:00]} 8. dxe5 {[%clk 0:03:00]}  Be6 {[%clk 0:03:01]} 9. Nbd2 {[%clk 0:03:00]}  Be7 {[%clk 0:02:59]} 10. c3 {[%clk 0:02:59]}  O-O {[%clk 0:02:59]} 11. Bc2 {[%clk 0:02:59]}  f5 {[%clk 0:02:59]} 12. Nb3 {[%clk 0:02:59]}  Qd7 {[%clk 0:02:58]} 13. Nfd4 {[%clk 0:02:46]}  Nxd4 {[%clk 0:02:51]} 14. Nxd4 {[%clk 0:02:44]}  c5 {[%clk 0:02:49]} 15. Nxe6 {[%clk 0:02:43]}  Qxe6 {[%clk 0:02:50]} 16. f3 {[%clk 0:02:41]}  Ng5 {[%clk 0:02:50]} 17. a4 {[%clk 0:02:41]}  g6 {[%clk 0:02:43]} 18. Qe2 {[%clk 0:02:19]}  c4 {[%clk 0:02:25]} 19. axb5 {[%clk 0:02:12]}  axb5 {[%clk 0:02:26]} 20. Rxa8 {[%clk 0:02:09]}  Rxa8 {[%clk 0:02:27]} 21. Be3 {[%clk 0:02:09]}  Qxe5 {[%clk 0:01:39]} 22. f4 {[%clk 0:01:26]}  Qe6 {[%clk 0:01:38]} 23. fxg5 {[%clk 0:01:26]}  Bc5 {[%clk 0:01:38]} 24. Re1 {[%clk 0:01:19]}  Re8 {[%clk 0:01:33]} 25. Kf2 {[%clk 0:01:13]}  Qb6 {[%clk 0:01:32]} 26. Qf3 {[%clk 0:01:09]}  Bxe3+ {[%clk 0:01:00]} 27. Kf1 {[%clk 0:01:00]}  Qc5 {[%clk 0:00:36]} 28. b4 {[%clk 0:01:00]}  cxb3 {[%clk 0:00:20]} 29. Bxb3 {[%clk 0:01:01]}  Re4 {[%clk 0:00:20]} 30. g3 {[%clk 0:00:53]}  Kg7 {[%clk 0:00:21]} 31. Bxd5 {[%clk 0:00:42]}  Re5 {[%clk 0:00:05]} 32. Bb3 {[%clk 0:00:38]}  Qxc3 {[%clk 0:00:05]} 33. Qb7+ {[%clk 0:00:35]}  Kh8 {[%clk 0:00:01]} 34. Qb8+ {[%clk 0:00:34]} 1-0


[Site "https://www.chess.com"]

[Event "Titled Tuesday Blitz October 5 2021"]
[White "Vusatiuk, Vladimir"]
[Black "Aradhya, Garg"]
[WhiteFideId "14118610"]
[BlackFideId "25006746"]
[WhiteElo "2167"]
[BlackElo "2146"]
[Result "0-1"]
[Round "07"]
[TimeControl "180+1"]
[Date "2021.10.05"]
[WhiteClock "0:01:02"]
[BlackClock "0:02:00"]

1. d4 {[%clk 0:03:00]}  d5 {[%clk 0:02:59]} 2. c4 {[%clk 0:03:01]}  c6 {[%clk 0:02:58]} 3. Nf3 {[%clk 0:03:01]}  Nf6 {[%clk 0:02:58]} 4. e3 {[%clk 0:03:01]}  Bf5 {[%clk 0:02:58]} 5. Nc3 {[%clk 0:03:01]}  e6 {[%clk 0:02:58]} 6. Nh4 {[%clk 0:03:02]}  Bg6 {[%clk 0:02:57]} 7. Nxg6 {[%clk 0:03:02]}  hxg6 {[%clk 0:02:57]} 8. Bd2 {[%clk 0:03:03]}  Nbd7 {[%clk 0:02:57]} 9. Bd3 {[%clk 0:03:00]}  Bd6 {[%clk 0:02:49]} 10. h3 {[%clk 0:02:57]}  g5 {[%clk 0:02:47]} 11. e4 {[%clk 0:02:54]}  dxe4 {[%clk 0:02:38]} 12. Nxe4 {[%clk 0:02:53]}  Nxe4 {[%clk 0:02:37]} 13. Bxe4 {[%clk 0:02:54]}  Bf4 {[%clk 0:02:33]} 14. Bb4 {[%clk 0:02:30]}  Qb6 {[%clk 0:02:28]} 15. Ba3 {[%clk 0:02:17]}  O-O-O {[%clk 0:02:20]} 16. g3 {[%clk 0:02:17]}  Nf6 {[%clk 0:02:18]} 17. Bc5 {[%clk 0:02:11]}  Qxb2 {[%clk 0:02:09]} 18. Rb1 {[%clk 0:01:36]}  Qc3+ {[%clk 0:02:03]} 19. Kf1 {[%clk 0:01:18]}  Nxe4 {[%clk 0:02:01]} 20. Qf3 {[%clk 0:01:02]}  Qxf3 {[%clk 0:02:00]} 0-1


[Site "https://www.chess.com"]

[Event "Titled Tuesday Blitz October 5 2021"]
[White "Aggelis, Nikolaos"]
[Black "Estrada Nieto, Julian"]
[WhiteFideId "4213220"]
[BlackFideId "5101018"]
[WhiteElo "2154"]
[BlackElo "2270"]
[Result "1-0"]
[Round "08"]
[TimeControl "180+1"]
[Date "2021.10.05"]
[WhiteClock "0:00:55"]
[BlackClock "0:00:01"]

1. d4 {[%clk 0:02:58]}  d5 {[%clk 0:02:59]} 2. g3 {[%clk 0:02:58]}  Nf6 {[%clk 0:02:59]} 3. Nf3 {[%clk 0:02:57]}  c6 {[%clk 0:02:59]} 4. c4 {[%clk 0:02:57]}  dxc4 {[%clk 0:02:54]} 5. Bg2 {[%clk 0:02:54]}  Bf5 {[%clk 0:02:53]} 6. Ne5 {[%clk 0:02:53]}  Nbd7 {[%clk 0:02:44]} 7. Nxc4 {[%clk 0:02:53]}  e6 {[%clk 0:02:36]} 8. O-O {[%clk 0:02:53]}  Be7 {[%clk 0:02:29]} 9. b3 {[%clk 0:02:53]}  O-O {[%clk 0:02:27]} 10. Bb2 {[%clk 0:02:54]}  a5 {[%clk 0:02:08]} 11. Nc3 {[%clk 0:02:52]}  Nd5 {[%clk 0:02:03]} 12. e4 {[%clk 0:02:45]}  Nxc3 {[%clk 0:02:00]} 13. Bxc3 {[%clk 0:02:46]}  Bg6 {[%clk 0:02:00]} 14. f4 {[%clk 0:02:41]}  f5 {[%clk 0:01:47]} 15. g4 {[%clk 0:02:27]}  fxe4 {[%clk 0:01:38]} 16. f5 {[%clk 0:02:27]}  exf5 {[%clk 0:01:37]} 17. gxf5 {[%clk 0:02:28]}  Rxf5 {[%clk 0:01:30]} 18. Qg4 {[%clk 0:02:25]}  Nf6 {[%clk 0:01:28]} 19. Qg3 {[%clk 0:02:18]}  Rxf1+ {[%clk 0:01:18]} 20. Rxf1 {[%clk 0:02:17]}  Nd5 {[%clk 0:01:18]} 21. Bb2 {[%clk 0:02:09]}  a4 {[%clk 0:01:14]} 22. Ne5 {[%clk 0:02:08]}  Bh4 {[%clk 0:00:59]} 23. Qh3 {[%clk 0:02:03]}  Qg5 {[%clk 0:00:32]} 24. Nxg6 {[%clk 0:01:49]}  hxg6 {[%clk 0:00:31]} 25. Qe6+ {[%clk 0:01:49]}  Kh7 {[%clk 0:00:29]} 26. Qxe4 {[%clk 0:01:49]}  axb3 {[%clk 0:00:24]} 27. Bc1 {[%clk 0:01:44]}  Qh5 {[%clk 0:00:09]} 28. axb3 {[%clk 0:01:43]}  Ra2 {[%clk 0:00:08]} 29. Bf3 {[%clk 0:01:40]}  Qf5 {[%clk 0:00:08]} 30. Qxh4+ {[%clk 0:01:37]}  Kg8 {[%clk 0:00:05]} 31. Qd8+ {[%clk 0:01:37]}  Kh7 {[%clk 0:00:05]} 32. Qh4+ {[%clk 0:01:35]}  Kg8 {[%clk 0:00:05]} 33. Qd8+ {[%clk 0:01:24]}  Kh7 {[%clk 0:00:04]} 34. Bxd5 {[%clk 0:01:16]}  Qxd5 {[%clk 0:00:03]} 35. Qxd5 {[%clk 0:01:15]}  cxd5 {[%clk 0:00:04]} 36. Bf4 {[%clk 0:01:08]}  Rb2 {[%clk 0:00:03]} 37. Be5 {[%clk 0:01:08]}  Rxb3 {[%clk 0:00:03]} 38. Rf7 {[%clk 0:01:09]}  Kh6 {[%clk 0:00:02]} 39. Rxg7 {[%clk 0:01:09]}  Kh5 {[%clk 0:00:02]} 40. Rd7 {[%clk 0:01:06]}  g5 {[%clk 0:00:02]} 41. Rxd5 {[%clk 0:01:06]}  Kg4 {[%clk 0:00:03]} 42. Bf6 {[%clk 0:01:05]}  Kf3 {[%clk 0:00:02]} 43. Rf5+ {[%clk 0:01:04]}  Ke4 {[%clk 0:00:02]} 44. Rxg5 {[%clk 0:01:04]}  Rb1+ {[%clk 0:00:02]} 45. Kf2 {[%clk 0:01:04]}  b5 {[%clk 0:00:03]} 46. h4 {[%clk 0:01:03]}  b4 {[%clk 0:00:02]} 47. Rb5 {[%clk 0:01:02]}  b3 {[%clk 0:00:02]} 48. d5 {[%clk 0:01:01]}  Kf5 {[%clk 0:00:02]} 49. Bc3 {[%clk 0:00:55]}  Ke4 {[%clk 0:00:01]} 50. d6 {[%clk 0:00:55]} 1-0


[Site "https://www.chess.com"]

[Event "Titled Tuesday Blitz October 5 2021"]
[White "Aldokhin, Ivan"]
[Black "Ertan, Can"]
[WhiteFideId "24115720"]
[BlackFideId "6306330"]
[WhiteElo "2231"]
[BlackElo "2223"]
[Result "0-1"]
[Round "08"]
[TimeControl "180+1"]
[Date "2021.10.05"]
[WhiteClock "0:00:01"]
[BlackClock "0:00:14"]

1. e4 {[%clk 0:03:00]}  e5 {[%clk 0:03:00]} 2. Nf3 {[%clk 0:03:01]}  Nc6 {[%clk 0:02:59]} 3. Bb5 {[%clk 0:03:01]}  a6 {[%clk 0:03:00]} 4. Ba4 {[%clk 0:03:01]}  Nf6 {[%clk 0:03:00]} 5. O-O {[%clk 0:03:01]}  Be7 {[%clk 0:03:00]} 6. Re1 {[%clk 0:03:01]}  b5 {[%clk 0:03:01]} 7. Bb3 {[%clk 0:03:01]}  O-O {[%clk 0:03:02]} 8. d4 {[%clk 0:03:01]}  exd4 {[%clk 0:02:51]} 9. e5 {[%clk 0:02:58]}  Ne8 {[%clk 0:02:51]} 10. Bd5 {[%clk 0:02:57]}  Rb8 {[%clk 0:02:32]} 11. c3 {[%clk 0:02:27]}  dxc3 {[%clk 0:02:28]} 12. Nxc3 {[%clk 0:02:27]}  Bb7 {[%clk 0:02:28]} 13. Bf4 {[%clk 0:02:02]}  Na5 {[%clk 0:02:27]} 14. Bxb7 {[%clk 0:01:36]}  Rxb7 {[%clk 0:02:22]} 15. Nd4 {[%clk 0:01:30]}  Bg5 {[%clk 0:02:01]} 16. Bg3 {[%clk 0:01:13]}  Nc4 {[%clk 0:01:57]} 17. Qf3 {[%clk 0:01:04]}  Rb6 {[%clk 0:01:41]} 18. Nf5 {[%clk 0:01:02]}  g6 {[%clk 0:01:33]} 19. h4 {[%clk 0:00:27]}  Bd2 {[%clk 0:01:23]} 20. Nd5 {[%clk 0:00:20]}  gxf5 {[%clk 0:01:17]} 21. Re2 {[%clk 0:00:16]}  Rg6 {[%clk 0:01:04]} 22. b3 {[%clk 0:00:16]}  c6 {[%clk 0:00:55]} 23. bxc4 {[%clk 0:00:15]}  cxd5 {[%clk 0:00:55]} 24. Rxd2 {[%clk 0:00:14]}  dxc4 {[%clk 0:00:55]} 25. Qxf5 {[%clk 0:00:13]}  Ng7 {[%clk 0:00:49]} 26. Qf3 {[%clk 0:00:09]}  f6 {[%clk 0:00:34]} 27. Rad1 {[%clk 0:00:03]}  fxe5 {[%clk 0:00:32]} 28. Qe4 {[%clk 0:00:03]}  d6 {[%clk 0:00:30]} 29. Kh2 {[%clk 0:00:02]}  Nf5 {[%clk 0:00:28]} 30. Qb7 {[%clk 0:00:01]}  Nxh4 {[%clk 0:00:14]} 0-1


[Site "https://www.chess.com"]